bitfinex-derivatives/quotes_ETHF0:USTF0_20240924
["timestamp","ask_amount","ask_price","bid_price","bid_amount"]
[1727205094805,0.3928,2643.3,2643.2,4.4378]
[1727205096015,1.87956474,2643.3,2643.2,4.4378]
[1727205096714,0.99103555,2643.4,2643.3,0.37833]
[1727205097014,0.99103555,2643.4,2643.3,1.23]
[1727205097015,1.48676474,2643.4,2643.3,1.23]
[1727205097207,0.75261,2643.5,2643.2,3.5946]
[1727205097208,0.37833,2643.3,2643.2,3.5946]
[1727205097409,0.3655,2643.3,2643.2,4.4378]
[1727205097716,1.85215543,2643.3,2643.2,4.81614]
[1727205098113,0.3655,2643.3,2643.2,1.60834]
[1727205098310,2.23047726,2643.3,2643.2,1.23]
[1727205098515,1.85214726,2643.3,2643.2,1.23]
[1727205098719,1.85214726,2643.3,2643.2,1.60834]
[1727205099516,1.85214726,2643.3,2643.2,2.00504]
[1727205099918,1.85214726,2643.3,2643.2,1.6267]
[1727205100516,2.23047726,2643.3,2643.2,1.6267]
[1727205101023,2.23047726,2643.3,2643.2,1.23]
[1727205101218,2.23047726,2643.3,2642.9,1.74354599]
[1727205101219,0.3655,2643.3,2642.9,1.74354599]
[1727205101416,0.99105433,2643.1,2643.0,4.81616]
[1727205101617,1.87478149,2643.2,2643.0,4.81616]
[1727205101812,0.99102093,2643.1,2643.0,4.81616]
[1727205102017,1.36811265,2643.1,2643.0,4.81616]
[1727205102223,1.36812085,2643.1,2643.0,4.81616]
[1727205102422,1.36809937,2643.1,2643.0,4.81616]
[1727205103520,1.3680344,2643.1,2643.0,4.81616]
[1727205106721,1.3680344,2643.1,2643.0,4.4378]
[1727205106921,1.3680344,2643.1,2643.0,4.81617]
[1727205107427,0.3771,2643.1,2643.0,4.81617]
[1727205107621,1.36798543,2643.1,2643.0,4.81617]
[1727205108633,1.36798543,2643.1,2643.0,4.4378]
[1727205108922,1.36798543,2643.1,2643.0,4.81617]
[1727205109627,1.36798543,2643.1,2643.0,4.4378]
[1727205109826,1.36791067,2643.1,2643.0,4.4378]
[1727205110030,0.75546,2643.1,2643.0,4.4378]
[1727205110325,0.3771,2643.1,2643.0,4.4378]
[1727205110720,0.3771,2643.1,2643.0,4.81617]
[1727205112128,0.3771,2643.1,2643.0,1.60837]
[1727205112320,5.64688149,2643.1,2642.9,3.2078]
[1727205112521,1.86496149,2643.0,2642.9,3.2078]
[1727205112717,0.37839,2642.9,2642.7,1.60841]
[1727205112918,1.38574268,2642.8,2642.7,1.60841]
[1727205113134,1.78704268,2642.8,2642.7,0.37841]
[1727205113330,2.16545268,2642.8,2642.6,3.58623]
[1727205113638,1.78697182,2642.8,2642.7,0.37841]
[1727205113927,2.16535834,2642.8,2642.6,3.58622]
[1727205114121,2.16535834,2642.8,2642.6,4.81622]
[1727205114318,0.99064834,2642.7,2642.6,4.81622]
[1727205114729,2.16535834,2642.8,2642.6,4.81622]
[1727205114930,1.78694834,2642.8,2642.6,4.4378]
[1727205115120,2.16534834,2642.8,2642.6,4.81622]
[1727205115921,1.78694834,2642.8,2642.7,1.60841]
[1727205116122,0.99064834,2643.0,2642.7,2.17604]
[1727205116328,0.99064834,2643.1,2642.9,4.4378]
[1727205116527,1.76084834,2643.2,2643.1,0.37836]
[1727205116824,1.76084834,2643.2,2643.1,1.60836]
[1727205117031,0.99064834,2643.3,2643.2,0.37834]
[1727205117232,0.99064834,2643.4,2643.3,0.37833]
[1727205117529,1.37744834,2643.5,2643.3,2.00553]
[1727205117733,0.99064834,2643.4,2643.3,2.00552]
[1727205118437,0.99064834,2643.4,2643.3,0.3972]
[1727205118737,0.99064834,2643.4,2643.2,5.57174]
[1727205118738,2.25169149,2643.5,2643.2,4.8179]
[1727205118929,0.99037152,2643.3,2643.2,4.8179]
[1727205119328,1.37807152,2643.3,2643.2,5.19624]
[1727205120424,1.37807152,2643.3,2643.2,3.96624]
[1727205120733,1.37807152,2643.3,2643.2,3.58614]
[1727205121235,1.37807152,2643.3,2643.2,3.95644]
[1727205122726,1.37858885,2643.3,2643.2,3.95644]
[1727205122922,1.37858885,2643.3,2643.2,0.74864]
[1727205123135,1.37858885,2643.3,2643.2,3.95644]
[1727205123730,0.3877,2643.3,2643.2,3.95644]
[1727205124232,0.3877,2643.3,2643.2,3.2078]
[1727205124436,1.87428149,2643.3,2643.2,3.2078]
[1727205124630,1.14553,2643.3,2643.2,3.2078]
[1727205126530,3.12890774,2643.3,2643.2,3.2078]
[1727205128230,3.12890774,2643.3,2643.2,3.58614]
[1727205128535,0.37836,2643.1,2643.0,0.99144599]
[1727205128725,0.37837,2643.0,2642.9,0.99144599]
[1727205128924,0.37838,2643.0,2642.8,0.99144599]
[1727205129227,1.49549,2642.9,2642.7,1.36984599]
[1727205129426,1.48808205,2642.8,2642.7,1.36984599]
[1727205129627,1.1171,2642.9,2642.8,0.3784]
[1727205131128,1.1171,2642.9,2642.7,1.36985599]
[1727205131437,1.48785553,2642.8,2642.7,1.36985599]
[1727205131632,1.48785553,2642.8,2642.7,0.37841]
[1727205131839,1.1171,2642.9,2642.8,0.3784]
[1727205132336,0.749,2642.9,2642.8,3.0384]
[1727205134341,1.85930311,2642.9,2642.8,3.0384]
[1727205134531,1.85930311,2642.9,2642.8,4.02984599]
[1727205135839,1.48760311,2642.9,2642.8,4.02984599]
[1727205136433,2.71107774,2643.2,2642.9,0.37839]
[1727205136434,1.48760311,2643.0,2642.9,0.37839]
[1727205136738,1.48760311,2643.1,2643.0,0.37837]
[1727205136937,1.48760311,2643.1,2643.0,4.80501913]
[1727205137333,1.48760311,2643.1,2643.0,5.75095913]
[1727205137540,1.48760311,2643.2,2643.1,0.37836]
[1727205137743,1.48760311,2643.2,2643.1,4.40201103]
[1727205138042,1.48760311,2643.2,2643.1,8.18521103]
[1727205138733,1.48760311,2643.2,2643.1,9.13111103]
[1727205138931,0.7687,2643.6,2643.2,0.37834]
[1727205138932,1.48760311,2643.3,2643.2,0.37834]
[1727205139236,2.36887774,2643.6,2643.5,0.3783]
[1727205140840,0.3855,2643.6,2643.4,0.3783]
[1727205141137,0.3855,2643.6,2643.2,6.85751949]
[1727205141344,1.48704555,2643.4,2643.2,6.85751949]
[1727205141646,0.99136563,2643.3,2643.2,7.23585949]
[1727205142141,0.99136563,2643.3,2643.2,11.96492949]
[1727205142344,0.99136563,2643.4,2643.3,0.37833]
[1727205142536,0.99136563,2643.4,2643.3,4.02778411]
[1727205142740,0.99136563,2643.4,2643.3,7.81098411]
[1727205144342,0.99136563,2643.4,2643.3,6.82153]
[1727205145540,0.99136563,2643.4,2643.3,3.03833]
[1727205145737,0.99136563,2643.4,2643.3,6.82153]
[1727205146047,0.99136563,2643.4,2643.3,3.03833]
[1727205146740,1.36396563,2643.4,2643.3,3.03833]
[1727205146943,1.85964555,2643.4,2643.2,3.58613]
[1727205147241,0.3851,2643.3,2643.2,3.58613]
[1727205147948,0.3851,2643.3,2643.2,3.2078]
[1727205148158,2.74680774,2643.3,2643.2,3.2078]
[1727205148337,0.76343,2643.3,2643.2,3.2078]
[1727205149646,0.3851,2643.3,2643.2,3.2078]
[1727205150147,0.76343,2643.3,2643.2,3.2078]
[1727205151134,0.3851,2643.3,2643.2,3.58614]
[1727205151342,0.3726,2643.4,2643.3,0.37833]
[1727205151540,2.3545402,2643.4,2643.3,3.03833]
[1727205153936,1.85902577,2643.4,2643.3,3.03833]
[1727205156646,1.85902577,2643.4,2643.3,0.37833]
[1727205157248,0.37835,2643.2,2642.9,3.58618]
[1727205157454,0.99104897,2643.0,2642.9,3.58618]
[1727205157747,1.86757346,2643.1,2642.9,3.58618]
[1727205157954,0.3703,2643.0,2642.9,3.58618]
[1727205158349,1.85687346,2643.0,2642.9,0.37838]
[1727205158652,1.85687346,2643.0,2642.9,3.58618]
[1727205158839,0.3703,2643.0,2642.9,3.58618]
[1727205159153,1.36133491,2643.0,2642.9,3.58618]
[1727205159341,1.36133491,2643.0,2642.9,6.24618]
[1727205159944,1.37203491,2643.1,2643.0,0.37837]
[1727205160144,1.73443491,2643.1,2643.0,0.37837]
[1727205160751,0.7434,2643.1,2643.0,0.37837]
[1727205161853,1.73474254,2643.1,2643.0,0.37837]
[1727205162052,2.22997346,2643.1,2643.0,0.37837]
[1727205162556,2.22997346,2643.1,2643.0,0.74997]
[1727205166556,2.22997346,2643.1,2643.0,0.37837]
[1727205166762,0.7434,2643.1,2643.0,0.37837]
[1727205167066,2.23058163,2643.1,2643.0,0.37837]
[1727205169069,0.99139011,2643.1,2643.0,5.15102411]
[1727205169573,2.25568163,2643.3,2643.0,5.15102411]
[1727205169574,0.99139011,2643.2,2643.1,0.37836]
[1727205169763,0.99139011,2643.2,2643.1,3.82066]
[1727205170476,2.25568163,2643.3,2643.2,0.37834]
[1727205170673,2.25568163,2643.3,2643.2,3.58614]
[1727205172382,2.25568163,2643.3,2643.2,0.37834]
[1727205177281,0.7685,2643.3,2643.2,0.37834]
[1727205178271,0.7685,2643.3,2643.2,1.60834]
[1727205178982,2.25618029,2643.3,2643.2,1.60834]
[1727205179285,0.7685,2643.3,2643.2,1.60834]
[1727205182587,0.7685,2643.3,2643.2,2.59779411]
[1727205182790,0.7685,2643.3,2643.2,1.60834]
[1727205186389,0.7685,2643.3,2643.1,3.2078]
[1727205186390,0.37834,2643.2,2643.1,3.2078]
[1727205187075,2.85851252,2643.2,2643.1,3.2078]
[1727205187484,2.48017252,2643.2,2643.1,0.37836]
[1727205187889,2.85851252,2643.2,2643.1,0.37836]
[1727205188580,2.48017252,2643.2,2643.1,0.37836]
[1727205189992,2.48017252,2643.2,2643.1,0.37836]
[1727205191393,1.14684,2643.3,2643.2,0.37834]
[1727205191582,1.14684,2643.3,2643.1,0.37835]
[1727205194088,1.14684,2643.3,2643.2,0.37834]
[1727205194393,3.62875103,2643.3,2643.2,0.37834]
[1727205194580,7.41195103,2643.3,2643.2,0.37834]
[1727205195188,3.25041103,2643.3,2643.2,0.37834]
[1727205195490,3.25041103,2643.3,2643.2,1.60834]
[1727205197796,3.62874103,2643.3,2643.2,1.23]
[1727205198179,3.25041103,2643.3,2643.2,1.23]
[1727205198584,3.62874103,2643.3,2643.1,0.37835]
[1727205199094,3.62874103,2643.3,2643.2,0.37834]
[1727205199389,1.14683,2643.3,2643.2,0.37834]
[1727205199794,3.62874103,2643.3,2643.2,0.37834]
[1727205200496,3.62874103,2643.3,2643.1,0.37836]
[1727205200892,2.48191103,2643.2,2643.1,0.37836]
[1727205201793,2.86025103,2643.2,2643.1,0.37836]
[1727205202793,0.37836,2643.1,2643.0,0.37836]
[1727205202993,2.86008221,2643.1,2643.0,0.37836]
[1727205203994,2.48172221,2643.1,2643.0,0.37836]
[1727205204295,0.37835,2643.2,2643.1,0.37836]
[1727205206191,1.14684,2643.3,2643.2,0.37834]
[1727205206997,0.37835,2643.2,2643.1,0.37835]
[1727205207900,3.25004256,2643.3,2643.1,0.37835]
[1727205208104,3.62838256,2643.3,2643.2,0.37834]
[1727205208299,3.62838256,2643.3,2643.0,1.5969]
[1727205208600,1.98512801,2643.1,2643.0,1.97527]
[1727205209502,1.98512801,2643.1,2643.0,2.34767]
[1727205209908,1.98512801,2643.1,2643.0,1.97527]
[1727205211299,1.98512801,2643.1,2642.9,1.36807766]
[1727205211300,2.36348801,2643.1,2642.9,1.36807766]
[1727205211602,1.1731,2643.0,2642.9,0.98969766]
[1727205211808,3.53660801,2643.0,2642.8,1.36808766]
[1727205212193,3.53660801,2643.0,2642.9,0.37839]
[1727205212609,1.55148,2643.0,2642.9,0.37839]
[1727205212806,1.1731,2643.0,2642.9,0.37839]
[1727205213713,1.55147,2643.0,2642.9,0.37839]
[1727205213909,1.1731,2643.0,2642.9,0.37839]
[1727205214101,1.55147,2643.0,2642.9,0.37839]
[1727205214307,3.53591525,2643.0,2642.9,0.37839]
[1727205214805,4.03301256,2643.0,2642.9,0.37839]
[1727205215111,3.65464256,2643.0,2642.9,0.37839]
[1727205216109,4.03301256,2643.0,2642.9,0.37839]
[1727205216508,1.55147,2643.0,2642.9,0.37839]
[1727205217105,1.1731,2643.0,2642.9,0.37839]
[1727205217404,3.65464256,2643.0,2642.9,0.37839]
[1727205218703,1.1731,2643.0,2642.9,0.37839]
[1727205222906,3.53539388,2643.0,2642.9,0.37839]
[1727205228611,0.3784,2642.9,2642.8,0.3784]
[1727205228809,0.3784,2642.8,2642.7,0.98969766]
[1727205229118,5.014,2642.8,2642.3,0.98969766]
[1727205229318,1.98421893,2642.6,2642.5,0.37844]
[1727205229717,2.36021893,2642.6,2642.5,0.37844]
[1727205230016,0.376,2642.6,2642.5,0.37844]
[1727205231405,0.376,2642.6,2642.5,0.74364]
[1727205238017,1.86330001,2642.6,2642.5,0.74364]
[1727205238713,1.8632368,2642.6,2642.5,0.74364]
[1727205238915,0.376,2642.6,2642.5,0.74364]
[1727205240323,1.86315671,2642.6,2642.5,0.74364]
[1727205241624,2.24158671,2642.6,2642.4,1.60844]
[1727205241832,0.376,2642.6,2642.5,0.37844]
[1727205242034,0.7557,2642.6,2642.5,0.37844]
[1727205243431,0.376,2642.6,2642.5,0.37844]
[1727205245729,2.35631893,2642.7,2642.6,0.37843]
[1727205245929,1.98421893,2642.8,2642.7,0.37841]
[1727205246125,1.98421893,2642.8,2642.7,1.60841]
[1727205246330,2.75151893,2642.9,2642.8,0.3784]
[1727205246738,1.98421893,2643.0,2642.9,0.37839]
[1727205247031,1.98421893,2643.3,2642.9,4.4378]
[1727205247234,1.98421893,2643.3,2643.2,0.37834]
[1727205247425,2.35891893,2643.4,2643.3,0.37833]
[1727205247621,1.98421893,2643.4,2643.3,1.60833]
[1727205248325,2.74621893,2643.5,2643.3,1.60833]
[1727205249233,1.98421893,2643.4,2643.3,1.60833]
[1727205249441,2.74621893,2643.5,2643.3,1.60833]
[1727205250224,2.74621893,2643.5,2643.4,0.37831]
[1727205250528,2.74621893,2643.5,2643.3,1.60832]
[1727205253031,1.98157801,2643.4,2643.3,1.60832]
[1727205254140,3.23881582,2643.5,2643.3,1.60832]
[1727205254432,3.23881582,2643.5,2643.4,0.37831]
[1727205255032,0.762,2643.5,2643.4,0.37831]
[1727205258943,1.98076615,2643.5,2643.4,4.16151]
[1727205259235,2.47681582,2643.7,2643.5,0.3783]
[1727205259236,1.98076615,2643.6,2643.5,0.3783]
[1727205260538,1.98076615,2643.6,2643.5,1.6083]
[1727205260835,1.48511036,2643.6,2643.5,1.6083]
[1727205262040,1.48511036,2643.8,2643.5,6.9902]
[1727205262239,0.98980779,2643.7,2643.6,1.6059]
[1727205263033,1.36030779,2643.8,2643.7,0.37827]
[1727205263236,1.36030779,2643.8,2643.6,1.6059]
[1727205263438,1.36030779,2643.8,2643.7,0.37827]
[1727205263649,1.36030779,2643.8,2643.5,3.2078]
[1727205263837,0.98934142,2643.7,2643.4,1.624]
[1727205264037,1.36964142,2643.7,2643.4,1.624]
[1727205264228,1.36964142,2643.7,2643.4,2.00231]
[1727205264448,0.98934142,2643.6,2643.5,0.37829]
[1727205264936,0.98934142,2643.6,2643.3,0.3759]
[1727205265133,0.769,2643.5,2643.4,0.37831]
[1727205269046,1.36964142,2643.7,2643.6,0.37829]
[1727205269245,1.37404142,2643.7,2643.6,0.37829]
[1727205269547,0.3847,2643.7,2643.6,0.37829]
[1727205270046,1.37404142,2643.7,2643.6,0.37829]
[1727205270236,0.98934142,2643.7,2643.6,4.16069]
[1727205270433,1.35304142,2643.8,2643.7,0.37827]
[1727205270640,1.35304142,2643.8,2643.7,2.00627]
[1727205271040,0.98934142,2643.8,2643.7,2.00627]
[1727205271245,1.37404142,2643.9,2643.8,0.37826]
[1727205271446,1.37404142,2643.9,2643.8,3.58606]
[1727205271640,1.37404142,2643.9,2643.8,3.98646]
[1727205272257,0.3847,2643.9,2643.8,3.98646]
[1727205272656,1.37404142,2643.9,2643.8,3.98646]
[1727205273462,0.3847,2643.9,2643.8,3.98646]
[1727205274965,1.37404142,2643.9,2643.8,3.98646]
[1727205275651,0.3847,2643.9,2643.8,3.58606]
[1727205275859,1.37245816,2643.9,2643.8,3.58606]
[1727205276560,0.3847,2643.9,2643.8,3.2078]
[1727205277160,1.86981036,2643.9,2643.8,3.2078]
[1727205277960,0.3847,2643.9,2643.8,3.2078]
[1727205278152,1.86981036,2643.9,2643.8,3.2078]
[1727205278365,2.24805036,2643.9,2643.8,3.2078]
[1727205278659,1.86981036,2643.9,2643.8,3.2078]
[1727205278853,1.86981036,2643.9,2643.8,3.58606]
[1727205279955,1.86981036,2643.9,2643.8,4.81606]
[1727205280165,1.86981036,2643.9,2643.8,4.4378]
[1727205281263,1.86981036,2643.9,2643.8,1.23]
[1727205282861,1.86981036,2643.9,2643.8,1.60826]
[1727205283063,1.37297771,2643.9,2643.8,1.60826]
[1727205283555,1.37297771,2643.9,2643.8,1.23]
[1727205283957,1.37297771,2643.9,2643.8,1.60826]
[1727205284769,1.37297771,2643.9,2643.8,1.23]
[1727205286475,0.3847,2643.9,2643.8,1.23]
[1727205286664,1.37357117,2643.9,2643.8,1.60826]
[1727205287466,0.3847,2643.9,2643.8,2.00926]
[1727205288365,1.37357117,2643.9,2643.8,2.00926]
[1727205290067,0.3847,2643.9,2643.8,2.00926]
[1727205290775,2.36546615,2643.9,2643.8,2.00926]
[1727205292174,1.98076615,2643.9,2643.8,2.00926]
[1727205292375,2.86941582,2644.0,2643.9,0.37824]
[1727205292578,2.86941582,2644.0,2643.9,1.60824]
[1727205298382,2.37504872,2644.0,2643.9,1.60824]
[1727205299680,2.37557875,2644.0,2643.9,1.60824]
[1727205300568,6.15797875,2644.0,2643.6,4.1953323]
[1727205300776,6.15797875,2644.0,2643.6,4.81609]
[1727205300777,1.48722205,2643.7,2643.6,4.81609]
[1727205301283,1.487386,2643.7,2643.6,4.81609]
[1727205301578,1.12487,2643.7,2643.6,3.2078]
[1727205301881,3.10784875,2643.7,2643.6,3.2078]
[1727205302076,3.10784875,2643.7,2643.4,1.3658423]
[1727205302077,0.37829,2643.6,2643.4,1.3658423]
[1727205302281,1.48746737,2643.5,2643.4,2.5958423]
[1727205302478,1.48746737,2643.5,2643.4,1.60831]
[1727205302783,1.48746737,2643.5,2643.4,2.5958423]
[1727205302981,1.48746737,2643.5,2643.4,1.60831]
[1727205303483,2.36126875,2643.6,2643.4,1.60831]
[1727205303681,1.98297875,2643.6,2643.2,0.9875323]
[1727205303888,1.98297875,2643.4,2643.3,0.37832]
[1727205304083,1.98297875,2643.4,2643.2,0.37834]
[1727205304084,0.37833,2643.3,2643.2,0.37834]
[1727205304284,0.37834,2643.2,2643.1,5.8036823]
[1727205304490,3.09257875,2643.3,2643.2,0.37834]
[1727205304682,3.09257875,2643.3,2643.1,4.4378]
[1727205304891,1.48793,2643.3,2643.2,0.37834]
[1727205305584,1.1096,2643.3,2643.2,0.37834]
[1727205305778,0.7466,2643.3,2643.2,0.37834]
[1727205305979,2.47681582,2643.6,2643.4,0.37831]
[1727205306174,0.3785,2643.6,2643.5,1.23]
[1727205306381,0.3785,2643.6,2643.5,1.6083]
[1727205306884,2.47681582,2643.7,2643.6,0.37829]
[1727205307072,3.63277582,2643.8,2643.6,0.3945]
[1727205307277,0.3785,2643.7,2643.6,1.23]
[1727205308084,0.3785,2643.7,2643.6,1.60829]
[1727205309884,0.3785,2643.7,2643.6,1.23]
[1727205310084,0.3785,2643.7,2643.5,1.23]
[1727205310385,2.47681582,2643.6,2643.4,3.2078]
[1727205310596,2.47681582,2643.6,2643.2,1.23]
[1727205310597,2.85510582,2643.6,2643.3,1.23]
[1727205310885,2.85510582,2643.6,2643.4,1.60831]
[1727205311297,2.85510582,2643.6,2643.4,1.23]
[1727205311491,2.85510582,2643.6,2643.4,1.60831]
[1727205311685,2.47681582,2643.6,2643.4,1.23]
[1727205311893,3.23359582,2643.7,2643.5,0.3783]
[1727205312191,2.85531582,2643.7,2643.6,1.60829]
[1727205312491,0.3785,2643.7,2643.6,1.60829]
[1727205312682,0.3785,2643.7,2643.6,4.81609]
[1727205312881,2.47681582,2643.9,2643.8,0.37826]
[1727205313093,2.47681582,2643.9,2643.8,1.60826]
[1727205313391,2.87911582,2644.0,2643.8,1.60826]
[1727205313593,3.25734582,2644.0,2643.8,1.23]
[1727205313785,3.25735582,2644.0,2643.8,1.23]
[1727205314090,2.87911582,2644.0,2643.8,1.60825]
[1727205314286,3.25734582,2644.0,2643.8,0.37825]
[1727205314489,3.25734582,2644.0,2643.6,6.2517]
[1727205314781,1.98338631,2643.8,2643.7,0.37827]
[1727205315888,0.3972,2644.1,2643.8,0.37826]
[1727205315889,1.98338631,2643.9,2643.8,0.37826]
[1727205316086,1.98338631,2643.9,2643.8,3.03826]
[1727205316591,1.98338631,2643.9,2643.8,0.37826]
[1727205317591,1.98338631,2643.9,2643.7,0.37826]
[1727205317791,1.98338631,2643.9,2643.6,7.2277]
[1727205317985,2.36178631,2643.8,2643.7,0.37827]
[1727205320291,0.3784,2643.8,2643.7,0.37827]
[1727205321190,2.36178631,2643.8,2643.7,0.37827]
[1727205321808,0.37828,2643.7,2643.5,0.9875323]
[1727205322000,2.72986631,2643.7,2643.4,3.6475323]
[1727205322190,2.72986631,2643.7,2643.4,3.03831]
[1727205322191,1.48767877,2643.5,2643.4,3.03831]
[1727205323397,1.48767877,2643.5,2643.4,4.0258423]
[1727205323902,1.48767877,2643.5,2643.4,3.03831]
[1727205324084,1.48767877,2643.5,2643.4,4.0258423]
[1727205324897,1.48767877,2643.5,2643.4,3.03831]
[1727205326186,1.48767877,2643.5,2643.4,4.0258423]
[1727205326501,1.48757391,2643.5,2643.4,3.6475323]
[1727205326904,1.48757391,2643.5,2643.4,3.0383]
[1727205327496,1.98338631,2643.5,2643.4,3.0383]
[1727205330099,3.22329582,2643.7,2643.4,3.0383]
[1727205330303,1.98347583,2643.5,2643.4,3.0383]
[1727205330605,1.9834392,2643.5,2643.4,3.0383]
[1727205331506,1.98334255,2643.5,2643.4,3.03831]
[1727205333396,2.47681582,2643.6,2643.4,3.03831]
[1727205333908,0.3926,2643.5,2643.4,3.03831]
[1727205334606,0.3926,2643.5,2643.4,1.60831]
[1727205335011,2.37585968,2643.5,2643.4,1.60831]
[1727205335408,1.88007369,2643.5,2643.4,1.60831]
[1727205335604,1.48747369,2643.5,2643.4,1.60831]
[1727205336616,1.48747369,2643.5,2643.4,2.5541]
[1727205336815,1.48747369,2643.5,2643.4,1.60831]
[1727205337218,1.48747369,2643.5,2643.4,2.5958423]
[1727205337528,1.48747369,2643.5,2643.4,3.5416323]
[1727205337717,1.48747369,2643.5,2643.4,2.5958423]
[1727205338118,1.48747369,2643.5,2643.4,3.5416323]
[1727205338824,1.48747369,2643.5,2643.4,2.5958423]
[1727205339026,1.48747369,2643.5,2643.4,1.60831]
[1727205339335,1.48747369,2643.5,2643.4,3.5416323]
[1727205340213,1.48747369,2643.5,2643.4,6.7494323]
[1727205342730,1.48747369,2643.5,2643.4,5.8036423]
[1727205343122,1.48747369,2643.5,2643.4,6.7494323]
[1727205344230,1.48747369,2643.5,2643.4,11.4784223]
[1727205344529,1.48747369,2643.5,2643.4,18.17433502]
[1727205344530,0.9920277,2643.5,2643.4,18.17433502]
[1727205344725,1.48747369,2643.7,2643.5,2.26982]
[1727205344726,0.9920277,2643.6,2643.5,2.26982]
[1727205344927,0.9920277,2643.6,2643.5,10.4445509]
[1727205345131,0.9920277,2643.6,2643.5,16.4445509]
[1727205345925,1.48747369,2643.7,2643.6,1.32401]
[1727205346134,1.48747369,2643.7,2643.6,2.69982102]
[1727205346326,1.48747369,2643.7,2643.6,6.48222102]
[1727205346530,1.48747369,2643.7,2643.6,6.64896844]
[1727205346927,2.85491582,2644.1,2643.7,1.32396]
[1727205346928,1.48747369,2643.8,2643.7,1.32396]
[1727205347128,1.48747369,2643.8,2643.7,6.74835133]
[1727205349431,1.48747369,2643.9,2643.8,0.37826]
[1727205349729,1.48747369,2643.9,2643.8,2.59485133]
[1727205349922,1.48747369,2643.9,2643.8,1.60826]
[1727205350533,1.98325968,2643.9,2643.8,1.60826]
[1727205352034,1.98325968,2643.9,2643.8,4.81606]
[1727205353132,1.98325968,2643.9,2643.8,5.76171]
[1727205353524,1.98325968,2643.9,2643.8,4.81606]
[1727205353732,1.98325968,2643.9,2643.8,5.76171]
[1727205354034,1.98325968,2644.0,2643.9,0.37824]
[1727205354337,1.98325968,2644.0,2643.9,4.81604]
[1727205355833,1.98325968,2644.0,2643.9,1.60824]
[1727205356639,1.98325968,2644.0,2643.9,4.81604]
[1727205357537,2.36135968,2644.1,2644.0,0.37823]
[1727205358432,2.36135968,2644.1,2643.9,3.2078]
[1727205358633,0.37825,2643.9,2643.6,1.36487133]
[1727205358832,1.48719416,2643.7,2643.5,2.21659133]
[1727205359136,1.48719416,2643.6,2643.5,0.98659133]
[1727205359339,1.48719416,2643.6,2643.5,1.6083]
[1727205361641,1.48719416,2643.6,2643.5,2.59489133]
[1727205362045,1.48719416,2643.7,2643.6,0.37829]
[1727205362239,1.1397,2643.8,2643.7,0.37827]
[1727205362448,1.1397,2643.8,2643.6,1.23]
[1727205362449,1.1397,2643.8,2643.6,1.97388]
[1727205362655,1.1397,2643.8,2643.5,0.98659133]
[1727205362656,1.48719521,2643.7,2643.5,0.98659133]
[1727205362845,1.48719521,2643.6,2643.5,0.3783]
[1727205363143,1.48719521,2643.6,2643.5,1.6083]
[1727205363444,1.48719521,2643.6,2643.5,1.23]
[1727205363650,0.37828,2643.7,2643.5,1.23]
[1727205363854,2.36120555,2643.7,2643.5,1.23]
[1727205364147,1.48732013,2643.6,2643.5,1.23]
[1727205364349,1.48732013,2643.6,2643.5,1.6083]
[1727205364546,1.48732013,2643.6,2643.5,1.23]
[1727205364746,1.86561013,2643.6,2643.5,1.23]
[1727205364939,0.3783,2643.5,2643.3,5.80271133]
[1727205365144,0.7289,2643.4,2643.3,5.42439133]
[1727205365348,2.59451041,2643.4,2643.3,3.2078]
[1727205365648,1.10721,2643.4,2643.3,3.2078]
[1727205365852,1.10721,2643.4,2643.1,2.21659133]
[1727205365853,7.72502555,2643.4,2643.1,0.37836]
[1727205366150,0.37834,2643.2,2643.0,4.4378]
[1727205366363,1.48735554,2643.1,2643.0,4.81617]
[1727205366644,1.87495554,2643.1,2643.0,3.2078]
[1727205366844,1.87480657,2643.1,2643.0,3.2078]
[1727205367250,1.87480657,2643.1,2643.0,4.81617]
[1727205369445,1.87480657,2643.1,2643.0,4.4378]
[1727205370047,2.25316657,2643.1,2643.0,1.23]
[1727205370354,1.87480657,2643.1,2643.0,1.23]
[1727205370746,2.25316657,2643.1,2643.0,1.23]
[1727205371357,1.87480657,2643.1,2643.0,1.60837]
[1727205371946,1.87480657,2643.1,2643.0,1.23]
[1727205372249,1.87480657,2643.1,2643.0,1.60837]
[1727205372644,1.37819897,2643.1,2643.0,1.60837]
[1727205373351,0.3876,2643.1,2643.0,1.60837]
[1727205374258,1.37798924,2643.1,2643.0,1.60837]
[1727205374749,0.76596,2643.1,2643.0,0.37837]
[1727205374951,5.65800657,2643.1,2642.8,1.23]
[1727205375253,0.3784,2642.8,2642.7,3.58621]
[1727205375448,1.36861786,2642.8,2642.7,3.58621]
[1727205375644,0.99021786,2642.8,2642.7,3.58621]
[1727205377048,0.99021786,2642.8,2642.7,4.34511]
[1727205377550,0.99021786,2642.9,2642.8,0.3784]
[1727205377756,0.99021786,2642.9,2642.8,1.6084]
[1727205379260,0.98953695,2643.0,2642.9,0.37839]
[1727205379456,1.48720657,2643.2,2643.1,0.37836]
[1727205379457,0.98953695,2643.2,2643.1,0.37836]
[1727205379657,0.98953695,2643.2,2643.1,1.60836]
[1727205380957,1.36787695,2643.3,2643.1,1.60836]
[1727205381157,1.36786695,2643.3,2643.1,1.60835]
[1727205381557,0.37834,2643.2,2643.0,1.60837]
[1727205381752,1.76337695,2643.2,2643.0,1.60837]
[1727205381947,0.3879,2643.1,2643.0,1.60837]
[1727205384259,0.3879,2643.1,2643.0,4.81617]
[1727205386963,0.76626,2643.1,2643.0,4.4378]
[1727205387167,0.3879,2643.1,2643.0,4.81617]
[1727205387467,0.3879,2643.1,2643.0,3.2078]
[1727205387653,0.76626,2643.1,2643.0,3.2078]
[1727205387857,0.37839,2642.9,2642.8,0.3784]
[1727205388060,0.3784,2642.8,2642.7,3.5968]
[1727205388364,0.3784,2642.8,2642.7,3.2078]
[1727205388770,5.10841,2642.8,2642.5,0.3622]
[1727205389060,5.10841,2642.8,2642.5,0.37844]
[1727205389061,0.37843,2642.6,2642.5,0.37844]
[1727205389575,0.77973,2642.6,2642.4,0.3692]
[1727205390055,0.77973,2642.6,2642.4,0.74765]